[Event "Titled Tuesday Blitz July 4 Early 2023"]
[White "Ambartsumova, Karina"]
[Black "Mekhitarian, Krikor Sevag"]
[WhiteFideId "4166299"]
[BlackFideId "2107660"]
[WhiteElo "2572"]
[BlackElo "2782"]
[Result "0-1"]
[Round "5"]
[TimeControl "180+2"]
[Date "2023.07.04"]
[WhiteClock "0:00:00"]
[BlackClock "0:00:38"]
[Board "65"]

1. Nf3 {[%clk 0:03:00]}  d5 {[%clk 0:02:59]} 2. e3 {[%clk 0:02:57]}  Nc6 {[%clk 0:02:51]} 3. c4 {[%clk 0:02:51]}  d4 {[%clk 0:02:51]} 4. exd4 {[%clk 0:02:50]}  Nxd4 {[%clk 0:02:52]} 5. Nxd4 {[%clk 0:02:51]}  Qxd4 {[%clk 0:02:52]} 6. Nc3 {[%clk 0:02:51]}  c6 {[%clk 0:02:51]} 7. d3 {[%clk 0:02:51]}  g6 {[%clk 0:02:49]} 8. Be3 {[%clk 0:02:51]}  Qd8 {[%clk 0:02:49]} 9. d4 {[%clk 0:02:51]}  Nh6 {[%clk 0:02:49]} 10. Bd3 {[%clk 0:02:42]}  Nf5 {[%clk 0:02:44]} 11. Bxf5 {[%clk 0:02:42]}  Bxf5 {[%clk 0:02:45]} 12. O-O {[%clk 0:02:42]}  Bg7 {[%clk 0:02:46]} 13. Qd2 {[%clk 0:02:41]}  O-O {[%clk 0:02:45]} 14. Rad1 {[%clk 0:02:40]}  Qd7 {[%clk 0:02:38]} 15. h3 {[%clk 0:02:38]}  b5 {[%clk 0:02:27]} 16. b3 {[%clk 0:02:12]}  Rfd8 {[%clk 0:02:20]} 17. Rfe1 {[%clk 0:01:46]}  bxc4 {[%clk 0:01:51]} 18. bxc4 {[%clk 0:01:46]}  Be6 {[%clk 0:01:52]} 19. d5 {[%clk 0:01:33]}  Bxc3 {[%clk 0:01:34]} 20. Qxc3 {[%clk 0:01:34]}  cxd5 {[%clk 0:01:35]} 21. cxd5 {[%clk 0:01:24]}  Bxd5 {[%clk 0:01:32]} 22. Bh6 {[%clk 0:00:51]}  f6 {[%clk 0:01:31]} 23. Qe3 {[%clk 0:00:30]}  e6 {[%clk 0:01:20]} 24. Qf4 {[%clk 0:00:26]}  Qf7 {[%clk 0:01:18]} 25. a3 {[%clk 0:00:26]}  g5 {[%clk 0:00:53]} 26. Bxg5 {[%clk 0:00:07]}  fxg5 {[%clk 0:00:52]} 27. Qg3 {[%clk 0:00:08]}  Qf4 {[%clk 0:00:46]} 28. Qc3 {[%clk 0:00:04]}  Rac8 {[%clk 0:00:46]} 29. Qa5 {[%clk 0:00:04]}  Rf8 {[%clk 0:00:42]} 30. Qxa7 {[%clk 0:00:00]}  Rc2 {[%clk 0:00:38]} 0-1


[Site "https://www.chess.com"]

[Event "Titled Tuesday Blitz July 4 Early 2023"]
[White "Perez Candelario, Manuel"]
[Black "Dvirnyy, Danyyil"]
[WhiteFideId "2210622"]
[BlackFideId "817570"]
[WhiteElo "2570"]
[BlackElo "2761"]
[Result "1-0"]
[Round "5"]
[TimeControl "180+2"]
[Date "2023.07.04"]
[WhiteClock "0:00:49"]
[BlackClock "0:00:06"]
[Board "66"]

1. e4 {[%clk 0:03:00]}  d6 {[%clk 0:02:59]} 2. d4 {[%clk 0:03:00]}  Nf6 {[%clk 0:02:59]} 3. Nc3 {[%clk 0:02:59]}  e5 {[%clk 0:03:00]} 4. Nf3 {[%clk 0:02:58]}  Nbd7 {[%clk 0:03:00]} 5. Bc4 {[%clk 0:02:57]}  Be7 {[%clk 0:03:00]} 6. O-O {[%clk 0:02:55]}  O-O {[%clk 0:03:00]} 7. a4 {[%clk 0:02:54]}  c6 {[%clk 0:03:00]} 8. Ba2 {[%clk 0:02:41]}  h6 {[%clk 0:02:59]} 9. h3 {[%clk 0:02:37]}  Re8 {[%clk 0:02:59]} 10. Re1 {[%clk 0:02:34]}  Bf8 {[%clk 0:02:58]} 11. Be3 {[%clk 0:02:32]}  Qc7 {[%clk 0:02:13]} 12. Nh4 {[%clk 0:02:22]}  exd4 {[%clk 0:01:46]} 13. Bxd4 {[%clk 0:02:22]}  Qd8 {[%clk 0:00:53]} 14. Ng6 {[%clk 0:02:14]}  Ne5 {[%clk 0:00:45]} 15. Nxf8 {[%clk 0:02:08]}  Rxf8 {[%clk 0:00:42]} 16. Qd2 {[%clk 0:02:07]}  Be6 {[%clk 0:00:41]} 17. Bxe6 {[%clk 0:02:02]}  fxe6 {[%clk 0:00:42]} 18. b3 {[%clk 0:01:47]}  Ng6 {[%clk 0:00:42]} 19. Rad1 {[%clk 0:01:44]}  d5 {[%clk 0:00:42]} 20. Qe3 {[%clk 0:01:24]}  Kh7 {[%clk 0:00:40]} 21. Bxa7 {[%clk 0:01:18]}  Nh5 {[%clk 0:00:38]} 22. Bc5 {[%clk 0:01:16]}  Rf7 {[%clk 0:00:34]} 23. exd5 {[%clk 0:01:16]}  exd5 {[%clk 0:00:34]} 24. Ne2 {[%clk 0:01:13]}  Qh4 {[%clk 0:00:33]} 25. Rd4 {[%clk 0:01:02]}  Nhf4 {[%clk 0:00:30]} 26. Nxf4 {[%clk 0:00:57]}  Rxf4 {[%clk 0:00:25]} 27. g3 {[%clk 0:00:50]}  Rxd4 {[%clk 0:00:08]} 28. gxh4 {[%clk 0:00:49]}  Re4 {[%clk 0:00:06]} 29. Qd2 {[%clk 0:00:49]} 1-0


[Site "https://www.chess.com"]

[Event "Titled Tuesday Blitz July 4 Early 2023"]
[White "Gorovets, Andrey"]
[Black "Mortazavi, Ali"]
[WhiteFideId "13504037"]
[BlackFideId "401323"]
[WhiteElo "2755"]
[BlackElo "2557"]
[Result "1-0"]
[Round "5"]
[TimeControl "180+2"]
[Date "2023.07.04"]
[WhiteClock "0:00:57"]
[BlackClock "0:00:00"]
[Board "67"]

1. Nf3 {[%clk 0:02:58]}  Nf6 {[%clk 0:02:59]} 2. c4 {[%clk 0:02:58]}  g6 {[%clk 0:02:59]} 3. g3 {[%clk 0:02:59]}  Bg7 {[%clk 0:02:59]} 4. d4 {[%clk 0:02:59]}  O-O {[%clk 0:03:00]} 5. Bg2 {[%clk 0:03:00]}  d6 {[%clk 0:03:01]} 6. Nc3 {[%clk 0:03:00]}  Nbd7 {[%clk 0:03:02]} 7. O-O {[%clk 0:03:00]}  e5 {[%clk 0:03:02]} 8. e4 {[%clk 0:03:01]}  c6 {[%clk 0:03:03]} 9. h3 {[%clk 0:03:01]}  Qa5 {[%clk 0:03:03]} 10. Re1 {[%clk 0:02:58]}  exd4 {[%clk 0:03:03]} 11. Nxd4 {[%clk 0:02:59]}  Ne5 {[%clk 0:03:03]} 12. Bf1 {[%clk 0:02:50]}  Qb6 {[%clk 0:03:03]} 13. Nb3 {[%clk 0:02:40]}  Be6 {[%clk 0:02:27]} 14. Be3 {[%clk 0:02:38]}  c5 {[%clk 0:02:27]} 15. Nd5 {[%clk 0:02:31]}  Bxd5 {[%clk 0:02:27]} 16. exd5 {[%clk 0:02:28]}  Rfe8 {[%clk 0:02:25]} 17. Kg2 {[%clk 0:02:27]}  a6 {[%clk 0:02:24]} 18. Qc2 {[%clk 0:02:26]}  Re7 {[%clk 0:02:17]} 19. f4 {[%clk 0:02:25]}  Ned7 {[%clk 0:02:15]} 20. Bf2 {[%clk 0:02:25]}  Rae8 {[%clk 0:02:14]} 21. Rxe7 {[%clk 0:02:26]}  Rxe7 {[%clk 0:02:14]} 22. Re1 {[%clk 0:02:26]}  Qd8 {[%clk 0:02:09]} 23. Nd2 {[%clk 0:02:18]}  Qe8 {[%clk 0:01:47]} 24. Rxe7 {[%clk 0:02:17]}  Qxe7 {[%clk 0:01:48]} 25. a3 {[%clk 0:02:10]}  Nh5 {[%clk 0:01:34]} 26. b4 {[%clk 0:02:09]}  Bd4 {[%clk 0:01:11]} 27. Qe4 {[%clk 0:02:04]}  Qf6 {[%clk 0:00:55]} 28. Bxd4 {[%clk 0:02:01]}  cxd4 {[%clk 0:00:53]} 29. Bd3 {[%clk 0:01:56]}  a5 {[%clk 0:00:36]} 30. Nf3 {[%clk 0:01:55]}  axb4 {[%clk 0:00:36]} 31. axb4 {[%clk 0:01:56]}  Qd8 {[%clk 0:00:36]} 32. Qxd4 {[%clk 0:01:52]}  Qa8 {[%clk 0:00:36]} 33. Qb2 {[%clk 0:01:49]}  Qa7 {[%clk 0:00:35]} 34. Nd4 {[%clk 0:01:46]}  Qb6 {[%clk 0:00:24]} 35. Be2 {[%clk 0:01:45]}  Nhf6 {[%clk 0:00:23]} 36. Bf3 {[%clk 0:01:45]}  Nc5 {[%clk 0:00:18]} 37. Nb5 {[%clk 0:01:34]}  Nce4 {[%clk 0:00:09]} 38. Qd4 {[%clk 0:01:30]}  Qa6 {[%clk 0:00:04]} 39. Bxe4 {[%clk 0:01:26]}  Qa2+ {[%clk 0:00:04]} 40. Kf3 {[%clk 0:01:26]}  Nd7 {[%clk 0:00:01]} 41. Nxd6 {[%clk 0:01:20]}  Qb3+ {[%clk 0:00:01]} 42. Kg2 {[%clk 0:01:14]}  Qxb4 {[%clk 0:00:01]} 43. Ne8 {[%clk 0:01:06]}  Kf8 {[%clk 0:00:01]} 44. Nf6 {[%clk 0:00:59]}  Nxf6 {[%clk 0:00:01]} 45. Qxf6 {[%clk 0:01:00]}  Qd2+ {[%clk 0:00:01]} 46. Kf3 {[%clk 0:00:59]}  Qd1+ {[%clk 0:00:00]} 47. Ke3 {[%clk 0:00:57]} 1-0


[Site "https://www.chess.com"]

[Event "Titled Tuesday Blitz July 4 Early 2023"]
[White "Golubev, Mikhail"]
[Black "Papasimakopoulos, Alexandros"]
[WhiteFideId "14100983"]
[BlackFideId "4244125"]
[WhiteElo "2555"]
[BlackElo "2696"]
[Result "1/2-1/2"]
[Round "5"]
[TimeControl "180+2"]
[Date "2023.07.04"]
[WhiteClock "0:00:04"]
[BlackClock "0:00:14"]
[Board "68"]

1. e4 {[%clk 0:03:00]}  e6 {[%clk 0:02:54]} 2. d4 {[%clk 0:02:59]}  d5 {[%clk 0:02:53]} 3. Bd3 {[%clk 0:02:59]}  Nf6 {[%clk 0:02:50]} 4. e5 {[%clk 0:02:57]}  Nfd7 {[%clk 0:02:50]} 5. Nf3 {[%clk 0:02:49]}  b6 {[%clk 0:02:50]} 6. Qe2 {[%clk 0:02:36]}  c5 {[%clk 0:02:45]} 7. c4 {[%clk 0:02:30]}  Bb7 {[%clk 0:02:26]} 8. cxd5 {[%clk 0:02:27]}  Bxd5 {[%clk 0:02:26]} 9. Nc3 {[%clk 0:02:26]}  Bb7 {[%clk 0:02:27]} 10. d5 {[%clk 0:02:14]}  exd5 {[%clk 0:02:20]} 11. O-O {[%clk 0:02:09]}  Be7 {[%clk 0:01:50]} 12. e6 {[%clk 0:01:56]}  fxe6 {[%clk 0:01:50]} 13. Qxe6 {[%clk 0:01:54]}  Nf8 {[%clk 0:01:51]} 14. Qh3 {[%clk 0:01:23]}  d4 {[%clk 0:01:22]} 15. Ne4 {[%clk 0:01:18]}  Nc6 {[%clk 0:01:18]} 16. Re1 {[%clk 0:00:59]}  Qd7 {[%clk 0:01:18]} 17. Qh5+ {[%clk 0:00:47]}  g6 {[%clk 0:01:06]} 18. Nf6+ {[%clk 0:00:36]}  Kd8 {[%clk 0:01:06]} 19. Nxd7 {[%clk 0:00:13]}  gxh5 {[%clk 0:01:05]} 20. Nde5 {[%clk 0:00:13]}  Nxe5 {[%clk 0:01:01]} 21. Nxe5 {[%clk 0:00:13]}  Rg8 {[%clk 0:01:01]} 22. Bc4 {[%clk 0:00:08]}  Rxg2+ {[%clk 0:01:00]} 23. Kf1 {[%clk 0:00:07]}  Rxh2 {[%clk 0:00:26]} 24. Nf7+ {[%clk 0:00:07]}  Kd7 {[%clk 0:00:26]} 25. Bb5+ {[%clk 0:00:07]}  Bc6 {[%clk 0:00:22]} 26. Ne5+ {[%clk 0:00:07]}  Kc7 {[%clk 0:00:23]} 27. Nxc6 {[%clk 0:00:06]}  Bd6 {[%clk 0:00:23]} 28. Ke2 {[%clk 0:00:05]}  Nd7 {[%clk 0:00:23]} 29. Bg5 {[%clk 0:00:04]}  Re8+ {[%clk 0:00:22]} 30. Kd3 {[%clk 0:00:04]}  Rxe1 {[%clk 0:00:21]} 31. Rxe1 {[%clk 0:00:04]}  Rxf2 {[%clk 0:00:21]} 32. Re8 {[%clk 0:00:04]}  Rf3+ {[%clk 0:00:22]} 33. Ke2 {[%clk 0:00:04]}  Rg3 {[%clk 0:00:21]} 34. Bd8+ {[%clk 0:00:03]}  Kb7 {[%clk 0:00:18]} 35. Bh4 {[%clk 0:00:03]}  Rg4 {[%clk 0:00:16]} 36. Nd8+ {[%clk 0:00:03]}  Kc7 {[%clk 0:00:16]} 37. Ne6+ {[%clk 0:00:03]}  Kb7 {[%clk 0:00:17]} 38. Nd8+ {[%clk 0:00:04]}  Kc7 {[%clk 0:00:16]} 39. Ne6+ {[%clk 0:00:04]}  Kb7 {[%clk 0:00:14]} 40. Nd8+ {[%clk 0:00:04]} 1/2-1/2


[Site "https://www.chess.com"]

[Event "Titled Tuesday Blitz July 4 Early 2023"]
[White "Rottenwohrer Suarez, Juan"]
[Black "Radzhabov, Rodion"]
[WhiteFideId "32068182"]
[BlackFideId "884715"]
[WhiteElo "2512"]
[BlackElo "2668"]
[Result "1-0"]
[Round "5"]
[TimeControl "180+2"]
[Date "2023.07.04"]
[WhiteClock "0:00:04"]
[BlackClock "0:00:00"]
[Board "72"]

1. c4 {[%clk 0:02:59]}  Nf6 {[%clk 0:02:51]} 2. g3 {[%clk 0:02:29]}  e6 {[%clk 0:02:50]} 3. Bg2 {[%clk 0:02:27]}  d5 {[%clk 0:02:49]} 4. Nf3 {[%clk 0:02:28]}  Be7 {[%clk 0:02:49]} 5. O-O {[%clk 0:02:29]}  O-O {[%clk 0:02:49]} 6. b3 {[%clk 0:02:29]}  c5 {[%clk 0:02:43]} 7. cxd5 {[%clk 0:02:24]}  Nxd5 {[%clk 0:02:43]} 8. Bb2 {[%clk 0:02:24]}  Nc6 {[%clk 0:02:43]} 9. Nc3 {[%clk 0:02:24]}  Bf6 {[%clk 0:02:34]} 10. Qc2 {[%clk 0:02:19]}  b6 {[%clk 0:02:23]} 11. Nxd5 {[%clk 0:02:13]}  exd5 {[%clk 0:02:18]} 12. Bxf6 {[%clk 0:02:09]}  Qxf6 {[%clk 0:02:13]} 13. d4 {[%clk 0:02:07]}  cxd4 {[%clk 0:01:33]} 14. Rfd1 {[%clk 0:01:34]}  Ba6 {[%clk 0:01:13]} 15. Qd2 {[%clk 0:01:28]}  d3 {[%clk 0:00:53]} 16. exd3 {[%clk 0:01:27]}  d4 {[%clk 0:00:53]} 17. Ng5 {[%clk 0:01:20]}  Rac8 {[%clk 0:00:51]} 18. Ne4 {[%clk 0:01:19]}  Qe5 {[%clk 0:00:46]} 19. Re1 {[%clk 0:01:16]}  Qa5 {[%clk 0:00:42]} 20. Rad1 {[%clk 0:01:01]}  Qxd2 {[%clk 0:00:39]} 21. Rxd2 {[%clk 0:01:02]}  Nb4 {[%clk 0:00:37]} 22. Bf1 {[%clk 0:00:52]}  Rfe8 {[%clk 0:00:33]} 23. Red1 {[%clk 0:00:49]}  Rc6 {[%clk 0:00:24]} 24. h4 {[%clk 0:00:39]}  f5 {[%clk 0:00:21]} 25. Ng5 {[%clk 0:00:37]}  h6 {[%clk 0:00:20]} 26. Nf3 {[%clk 0:00:37]}  Rd8 {[%clk 0:00:13]} 27. Bh3 {[%clk 0:00:34]}  g6 {[%clk 0:00:12]} 28. h5 {[%clk 0:00:34]}  g5 {[%clk 0:00:06]} 29. Bxf5 {[%clk 0:00:33]}  Rf6 {[%clk 0:00:07]} 30. Be4 {[%clk 0:00:31]}  Nd5 {[%clk 0:00:06]} 31. Nxd4 {[%clk 0:00:16]}  Nc3 {[%clk 0:00:02]} 32. Rc1 {[%clk 0:00:17]}  Nxe4 {[%clk 0:00:01]} 33. dxe4 {[%clk 0:00:18]}  Rfd6 {[%clk 0:00:01]} 34. Rcd1 {[%clk 0:00:16]}  Kf7 {[%clk 0:00:01]} 35. Nf3 {[%clk 0:00:09]}  Rxd2 {[%clk 0:00:01]} 36. Rxd2 {[%clk 0:00:10]}  Rc8 {[%clk 0:00:02]} 37. Ne5+ {[%clk 0:00:06]}  Ke6 {[%clk 0:00:00]} 38. Nc4 {[%clk 0:00:04]} 1-0


[Site "https://www.chess.com"]

[Event "Titled Tuesday Blitz July 4 Early 2023"]
[White "Postlmayer, Jakob"]
[Black "Kamalidenova, Meruert"]
[WhiteFideId "1643622"]
[BlackFideId "13712802"]
[WhiteElo "2505"]
[BlackElo "2646"]
[Result "0-1"]
[Round "5"]
[TimeControl "180+2"]
[Date "2023.07.04"]
[WhiteClock "0:00:00"]
[BlackClock "0:00:51"]
[Board "75"]

1. e4 {[%clk 0:03:00]}  e5 {[%clk 0:02:54]} 2. Nf3 {[%clk 0:03:00]}  Nc6 {[%clk 0:02:54]} 3. Bb5 {[%clk 0:03:01]}  a6 {[%clk 0:02:53]} 4. Ba4 {[%clk 0:03:01]}  Nf6 {[%clk 0:02:52]} 5. O-O {[%clk 0:03:01]}  Nxe4 {[%clk 0:02:52]} 6. d4 {[%clk 0:03:01]}  b5 {[%clk 0:02:52]} 7. Bb3 {[%clk 0:03:01]}  d5 {[%clk 0:02:53]} 8. dxe5 {[%clk 0:03:02]}  Be6 {[%clk 0:02:54]} 9. c3 {[%clk 0:03:02]}  Bc5 {[%clk 0:02:49]} 10. Nbd2 {[%clk 0:03:01]}  O-O {[%clk 0:02:49]} 11. Bc2 {[%clk 0:03:01]}  Nxf2 {[%clk 0:02:40]} 12. Rxf2 {[%clk 0:03:02]}  Bxf2+ {[%clk 0:02:39]} 13. Kxf2 {[%clk 0:03:03]}  f6 {[%clk 0:02:40]} 14. Kg1 {[%clk 0:03:01]}  fxe5 {[%clk 0:02:39]} 15. Nf1 {[%clk 0:03:00]}  Qd7 {[%clk 0:02:27]} 16. Ng5 {[%clk 0:02:31]}  Bf5 {[%clk 0:02:04]} 17. Bb3 {[%clk 0:02:31]}  Rad8 {[%clk 0:01:58]} 18. Be3 {[%clk 0:02:23]}  h6 {[%clk 0:01:57]} 19. Nf3 {[%clk 0:02:16]}  Kh8 {[%clk 0:01:52]} 20. Qd2 {[%clk 0:01:54]}  Bg4 {[%clk 0:01:48]} 21. Nh4 {[%clk 0:00:55]}  Rf6 {[%clk 0:01:46]} 22. h3 {[%clk 0:00:43]}  Be6 {[%clk 0:01:42]} 23. Kh2 {[%clk 0:00:33]}  d4 {[%clk 0:01:41]} 24. cxd4 {[%clk 0:00:29]}  exd4 {[%clk 0:01:40]} 25. Bf2 {[%clk 0:00:29]}  Rdf8 {[%clk 0:01:35]} 26. Bxe6 {[%clk 0:00:26]}  Qxe6 {[%clk 0:01:35]} 27. Nf3 {[%clk 0:00:26]}  Ne5 {[%clk 0:01:19]} 28. Nxe5 {[%clk 0:00:19]}  Rxf2 {[%clk 0:01:17]} 29. Qxd4 {[%clk 0:00:19]}  Rxf1 {[%clk 0:01:00]} 30. Rxf1 {[%clk 0:00:17]}  Rxf1 {[%clk 0:01:01]} 31. Qd8+ {[%clk 0:00:16]}  Kh7 {[%clk 0:01:01]} 32. Qxc7 {[%clk 0:00:12]}  Qf5 {[%clk 0:00:57]} 33. Nf3 {[%clk 0:00:11]}  Rf2 {[%clk 0:00:54]} 34. Kg1 {[%clk 0:00:10]}  Rxb2 {[%clk 0:00:54]} 35. a3 {[%clk 0:00:09]}  Ra2 {[%clk 0:00:53]} 36. Qc3 {[%clk 0:00:08]}  Qc2 {[%clk 0:00:51]} 37. Qxc2+ {[%clk 0:00:03]}  Rxc2 {[%clk 0:00:52]} 38. Nd4 {[%clk 0:00:00]}  Ra2 {[%clk 0:00:51]} 0-1


[Site "https://www.chess.com"]

[Event "Titled Tuesday Blitz July 4 Early 2023"]
[White "chess123456s"]
[Black "Philippe, Guillaume"]
[BlackFideId "36048763"]
[WhiteElo "2638"]
[BlackElo "2420"]
[Result "0-1"]
[Round "5"]
[TimeControl "180+2"]
[Date "2023.07.04"]
[WhiteClock "0:00:00"]
[BlackClock "0:00:07"]
[Board "76"]

1. Nf3 {[%clk 0:03:00]}  Nf6 {[%clk 0:02:59]} 2. c4 {[%clk 0:03:00]}  e6 {[%clk 0:02:59]} 3. g3 {[%clk 0:03:01]}  d5 {[%clk 0:02:58]} 4. Bg2 {[%clk 0:03:01]}  Be7 {[%clk 0:02:53]} 5. O-O {[%clk 0:03:01]}  O-O {[%clk 0:02:53]} 6. b3 {[%clk 0:03:02]}  c5 {[%clk 0:02:52]} 7. cxd5 {[%clk 0:03:01]}  Nxd5 {[%clk 0:02:49]} 8. Nc3 {[%clk 0:03:00]}  Nc6 {[%clk 0:02:46]} 9. Nxd5 {[%clk 0:02:59]}  Qxd5 {[%clk 0:02:45]} 10. Bb2 {[%clk 0:02:58]}  Qh5 {[%clk 0:02:25]} 11. Rc1 {[%clk 0:02:56]}  e5 {[%clk 0:02:17]} 12. d3 {[%clk 0:02:47]}  Bh3 {[%clk 0:02:10]} 13. Bxh3 {[%clk 0:02:42]}  Qxh3 {[%clk 0:02:10]} 14. Nxe5 {[%clk 0:02:42]}  Nxe5 {[%clk 0:01:44]} 15. Bxe5 {[%clk 0:02:41]}  Rad8 {[%clk 0:01:44]} 16. e4 {[%clk 0:02:33]}  Rd7 {[%clk 0:01:26]} 17. Qf3 {[%clk 0:02:26]}  Rfd8 {[%clk 0:01:25]} 18. Rfd1 {[%clk 0:02:25]}  Qe6 {[%clk 0:01:24]} 19. Bb2 {[%clk 0:02:22]}  b6 {[%clk 0:01:24]} 20. Qe2 {[%clk 0:02:19]}  Bf6 {[%clk 0:01:21]} 21. Bxf6 {[%clk 0:02:17]}  Qxf6 {[%clk 0:01:22]} 22. f4 {[%clk 0:02:15]}  Rd4 {[%clk 0:01:17]} 23. Qe3 {[%clk 0:02:13]}  Qd6 {[%clk 0:01:16]} 24. Rc3 {[%clk 0:02:12]}  h5 {[%clk 0:01:11]} 25. Kg2 {[%clk 0:02:07]}  Re8 {[%clk 0:01:10]} 26. Re1 {[%clk 0:01:35]}  Rd8 {[%clk 0:01:10]} 27. e5 {[%clk 0:01:30]}  Qg6 {[%clk 0:00:35]} 28. Rd1 {[%clk 0:01:06]}  h4 {[%clk 0:00:35]} 29. Kf2 {[%clk 0:01:01]}  h3 {[%clk 0:00:34]} 30. Qf3 {[%clk 0:00:58]}  Qf5 {[%clk 0:00:32]} 31. a3 {[%clk 0:00:49]}  a5 {[%clk 0:00:31]} 32. Ke3 {[%clk 0:00:46]}  Qd7 {[%clk 0:00:29]} 33. Kd2 {[%clk 0:00:43]}  a4 {[%clk 0:00:28]} 34. Kc2 {[%clk 0:00:27]}  axb3+ {[%clk 0:00:24]} 35. Kxb3 {[%clk 0:00:27]}  Qa4+ {[%clk 0:00:20]} 36. Ka2 {[%clk 0:00:22]}  c4 {[%clk 0:00:19]} 37. e6 {[%clk 0:00:10]}  fxe6 {[%clk 0:00:19]} 38. Qg4 {[%clk 0:00:10]}  R8d6 {[%clk 0:00:18]} 39. Re1 {[%clk 0:00:08]}  Rxd3 {[%clk 0:00:16]} 40. Rxd3 {[%clk 0:00:04]}  cxd3 {[%clk 0:00:12]} 41. Qd1 {[%clk 0:00:01]}  Qc4+ {[%clk 0:00:10]} 42. Kb2 {[%clk 0:00:02]}  Qd4+ {[%clk 0:00:09]} 43. Ka2 {[%clk 0:00:02]}  Rd5 {[%clk 0:00:09]} 44. Qd2 {[%clk 0:00:02]}  Rc5 {[%clk 0:00:09]} 45. Rc1 {[%clk 0:00:01]}  Rxc1 {[%clk 0:00:08]} 46. Qxc1 {[%clk 0:00:02]}  Qf2+ {[%clk 0:00:08]} 47. Kb3 {[%clk 0:00:01]}  d2 {[%clk 0:00:07]} 48. Qc8+ {[%clk 0:00:02]}  Kh7 {[%clk 0:00:08]} 49. Qc2+ {[%clk 0:00:02]}  Kh6 {[%clk 0:00:08]} 50. Kc3 {[%clk 0:00:02]}  Qe3+ {[%clk 0:00:06]} 51. Kb2 {[%clk 0:00:01]}  Qd4+ {[%clk 0:00:07]} 52. Ka2 {[%clk 0:00:00]}  d1=Q {[%clk 0:00:07]} 0-1


[Site "https://www.chess.com"]

[Event "Titled Tuesday Blitz July 4 Early 2023"]
[White "Kramnik, Vladimir"]
[Black "ElDivis"]
[WhiteFideId "4101588"]
[WhiteElo "2968"]
[BlackElo "2527"]
[Result "1-0"]
[Round "5"]
[TimeControl "180+2"]
[Date "2023.07.04"]
[WhiteClock "0:00:28"]
[BlackClock "0:00:00"]
[Board "79"]

1. e4 {[%clk 0:03:00]}  c5 {[%clk 0:02:59]} 2. Nf3 {[%clk 0:03:00]}  d6 {[%clk 0:02:59]} 3. d4 {[%clk 0:03:00]}  cxd4 {[%clk 0:03:00]} 4. Nxd4 {[%clk 0:03:00]}  Nf6 {[%clk 0:02:59]} 5. Nc3 {[%clk 0:03:00]}  g6 {[%clk 0:02:59]} 6. Be2 {[%clk 0:02:58]}  Bg7 {[%clk 0:02:58]} 7. O-O {[%clk 0:02:58]}  O-O {[%clk 0:02:58]} 8. Be3 {[%clk 0:02:59]}  Nc6 {[%clk 0:02:57]} 9. Qd2 {[%clk 0:02:59]}  d5 {[%clk 0:02:57]} 10. exd5 {[%clk 0:02:55]}  Nxd5 {[%clk 0:02:57]} 11. Nxc6 {[%clk 0:02:55]}  bxc6 {[%clk 0:02:56]} 12. Rfd1 {[%clk 0:02:54]}  Bb7 {[%clk 0:02:39]} 13. Bd4 {[%clk 0:02:37]}  e5 {[%clk 0:01:53]} 14. Bc5 {[%clk 0:02:15]}  Re8 {[%clk 0:01:47]} 15. Ne4 {[%clk 0:02:01]}  Nf4 {[%clk 0:01:32]} 16. Nd6 {[%clk 0:01:45]}  Qg5 {[%clk 0:01:15]} 17. Bf1 {[%clk 0:01:29]}  Ba6 {[%clk 0:01:01]} 18. Ne4 {[%clk 0:01:13]}  Nh3+ {[%clk 0:00:58]} 19. Kh1 {[%clk 0:01:12]}  Qxd2 {[%clk 0:00:58]} 20. Rxd2 {[%clk 0:01:11]}  Bxf1 {[%clk 0:00:57]} 21. Rxf1 {[%clk 0:01:11]}  Nf4 {[%clk 0:00:57]} 22. Rfd1 {[%clk 0:01:09]}  Ne6 {[%clk 0:00:55]} 23. Ba3 {[%clk 0:00:54]}  f5 {[%clk 0:00:47]} 24. Nc5 {[%clk 0:00:54]}  Nd4 {[%clk 0:00:38]} 25. Na6 {[%clk 0:00:51]}  Rac8 {[%clk 0:00:32]} 26. c3 {[%clk 0:00:47]}  Nb5 {[%clk 0:00:32]} 27. Bc5 {[%clk 0:00:46]}  Nc7 {[%clk 0:00:24]} 28. Nxc7 {[%clk 0:00:46]}  Rxc7 {[%clk 0:00:25]} 29. Rd7 {[%clk 0:00:46]}  Rxd7 {[%clk 0:00:24]} 30. Rxd7 {[%clk 0:00:45]}  a5 {[%clk 0:00:24]} 31. g3 {[%clk 0:00:44]}  e4 {[%clk 0:00:22]} 32. Kg2 {[%clk 0:00:37]}  Bh6 {[%clk 0:00:21]} 33. b4 {[%clk 0:00:36]}  a4 {[%clk 0:00:19]} 34. Rc7 {[%clk 0:00:35]}  Rd8 {[%clk 0:00:19]} 35. Bd4 {[%clk 0:00:32]}  a3 {[%clk 0:00:14]} 36. Rxc6 {[%clk 0:00:31]}  Bc1 {[%clk 0:00:08]} 37. b5 {[%clk 0:00:30]}  f4 {[%clk 0:00:07]} 38. gxf4 {[%clk 0:00:30]}  Bxf4 {[%clk 0:00:02]} 39. b6 {[%clk 0:00:30]}  Kf7 {[%clk 0:00:00]} 40. b7 {[%clk 0:00:28]} 1-0


[Site "https://www.chess.com"]